{"text_format":"1","workbook":"xlsx","n_sheets":1,"sheets":["contacts"],"not_rendered":{"charts":0,"images":4,"macros":1,"external_links":0,"defined_names":0,"comments":0,"pivot_tables":0},"unopened":[],"bounds":{"document_bytes":16777216,"sheet_cells":100000,"rows_first":2000,"rows_last":500,"rows_between":2000,"halvings":0,"cell_chars":16384,"cell_head_chars":4096},"cells_cut":0,"cells_raw":0,"read":"whole","date_system":"1900"}

{"sheet":"contacts","index":0,"n_rows":38,"n_cols":8,"rows_kept":38,"cut":false,"hidden":false,"merged":[[4,0,5,0],[4,1,5,1],[4,2,5,2],[4,3,5,3],[4,6,5,6],[4,7,5,7]]}
[]
[]
[]
[]
["First Name","Last Name","Full Name","Emails","TELEPHONE1","TELEPHONE2","Organization","Job Title"]
[null,null,null,null,"WORK","HOME"]
["Cornall","Fante",{"$f":"A7 & \" \" & B7","v":"Cornall Fante"},"cfante0@vk.com","493-951-2066","399-800-3333","Gevee","Accounting Assistant IV"]
["Kingsly","Kershow",{"$f":"A8 & \" \" & B8","v":"Kingsly Kershow"},"kkershow1@xinhuanet.com","544-220-9341","706-656-8670","Tagtune","Nurse Practicioner"]
["Abdel","Watchorn","Abdel Watchorn","awatchorn2@delicious.com","967-369-4383","441-418-1479","Tambee","Community Outreach Specialist"]
["Danielle","Sugarman","Danielle Sugarman","dsugarman3@cargocollective.com","351-339-5525","845-257-4626","Oyondu","Staff Scientist"]
["Jarvis","Form","Jarvis Form","jform4@newsvine.com","241-942-2009","100-502-3523","Yodel","Senior Cost Accountant"]
["Eveline","Killelay","Eveline Killelay","ekillelay5@wikispaces.com","714-254-0089","680-694-5186","Brightbean","Web Developer IV"]
["Blaire","Denisevich","Blaire Denisevich","bdenisevich6@statcounter.com","333-329-9039","204-529-5924","Vinte","Data Coordiator"]
["Danell","Skurray","Danell Skurray","dskurray7@baidu.com","387-468-5418","120-280-0766","Babblestorm","Pharmacist"]
["Phylys","Perl",{"$f":"A15 & \" \" & B15","v":"Phylys Perl"},"pperl8@admin.ch","866-680-7289","758-402-0009","Kazu","Human Resources Assistant II"]
["Cordy","Lamey","Cordy Lamey","clamey9@time.com","641-704-1864","562-243-2566","Jabbercube","Programmer III"]
[null,null," "]
[null,null," "]
[null,null," "]
[null,null," "]
[null,null," "]
[null,null," "]
[null,null," "]
[null,null," "]
[null,null," "]
[null,null," "]
[null,null," "]
[null,null," "]
[null,null," "]
[null,null," "]
[null,null," "]
[null,null," "]
[null,null," "]
[null,null," "]
[null,null," "]
[null,null," "]
[null,null," "]
[null,null," "]